Cogmind - Beta 16.1 @@@ ROGUE MODE // 2026.04.13 @ 23:21:33 Player: skelll Result: Destroyed by YI-UF0 with YI-UF0's Doublenader Performance ------------- Evolutions (0) 0 Regions Visited (2) 400 Robots Destroyed (11) 55 Value Destroyed (238) 238 Prototype IDs (0) 0 Alien Tech Used (0) 0 Bonus (0) 0 TOTAL SCORE: 693 Bonus ------- None Cogmind --------- Core Integrity 0/250 Matter 293/300 Energy 99/100 System Corruption 0% Temperature Cool (0) Movement Walking (190) Ox1 Location -10/Mines Parts ------- > --- POWER (1) -------- (None) > --- PROPULSION (2) --- Aluminum Leg Aluminum Leg > --- UTILITY (2) ------ Large Storage Unit Structural Scanner > --- WEAPON (2) ------- Small Laser Light Assault Rifle > --- INVENTORY (15) --- Ion Engine Light Treads Light Treads Flight Unit Flight Unit Flight Unit Flight Unit Small Storage Unit Structural Scanner Visual Processing Unit Improved Targeting Computer Weapon Shielding Light Armor Plating Assault Rifle Peak State ------------ > --- POWER ------------ Light Ion Engine > --- PROPULSION ------- Aluminum Leg Aluminum Leg > --- UTILITY ---------- Large Storage Unit Structural Scanner > --- WEAPON ----------- Heavy EM Pulse Gun Small Laser > --- INVENTORY -------- Ion Engine Light Ion Engine Light Treads Light Treads Flight Unit Flight Unit Flight Unit Flight Unit Small Storage Unit Structural Scanner Visual Processing Unit Improved Targeting Computer Small Laser Assault Rifle Light Assault Rifle [Rating: 9] Favorites ----------- Power Light Ion Engine Engine Light Ion Engine Propulsion Aluminum Leg Treads Light Treads Leg Aluminum Leg Flight Unit Flight Unit Utility Structural Scanner Device Structural Scanner Storage Large Storage Unit Weapon Small Laser Energy Gun Small Laser Ballistic Gun Light Assault Rifle Build | -11 -10 -10 ------- Run | Yrd Mat Min Slots Evolved . | . . . Power . | . . . Propulsion . | . . . Utility . | . . . Weapon . | . . . Parts Attached 20 | 6 7 7 Power 4 | 1 1 2 Engine 4 | 1 1 2 Core . | . . . Reactor . | . . . Propulsion 8 | 2 2 4 Treads 1 | . 1 . Leg 6 | 2 . 4 Wheel . | . . . Hover . | . . . Flight 1 | . 1 . Utility 3 | 1 2 . Device 1 | . 1 . Storage 2 | 1 1 . Processor . | . . . Hackware . | . . . Protection . | . . . Artifact . | . . . Weapon 5 | 2 2 1 Energy Gun 4 | 2 2 . Energy Cannon . | . . . Ballistic Gun 1 | . . 1 Ballistic Cannon . | . . . Launcher . | . . . Special Weapon . | . . . Impact Weapon . | . . . Slashing Weapon . | . . . Piercing Weapon . | . . . Special Melee Weapon . | . . . Unidentified Prototypes . | . . . Parts Lost 3 | . 1 2 Power 1 | . . 1 Propulsion . | . . . Utility . | . . . Weapon 2 | . 1 1 Highest Loss Streak 2 | . 1 2 To Critical Strikes . | . . . Average Backups 11 | 2 10 14 Power 1 | . 1 1 Propulsion 4 | 1 4 6 Utility 4 | . 2 6 Weapon 2 | . 2 1 Tool/Special . | . . . Unused Backups 11 | . . 11 Power 1 | . . 1 Propulsion 4 | . . 4 Utility 5 | . . 5 Weapon 1 | . . 1 Tool/Special . | . . . Average Slot Usage (%) 98 | . 98 99 Engine 13 | . 14 13 Leg 28 | . 28 28 Device 13 | . 12 14 Storage 14 | . 14 14 Energy Gun 27 | . 28 27 Peak Build Rating 9 | 6 9 9 Average Rating 8 | 5 7 8 On Entrance 5 | . 6 9 Avg Prop Armor Cover (%) . | . . . Naked Turns . | . . . Heaviest Build 30 | 10 28 30 Greatest Support 20 | 20 20 20 Greatest Overweight (x) 1 | . 1 1 Average Overweight (x) . | . . 1 Largest Inventory Capacity 15 | 8 15 15 Average Capacity 13 | 6 13 15 Most Carried 15 | 4 15 15 Average Carried 11 | 2 10 14 Final Capacity 15 | 8 15 15 Final Carried 15 | 4 15 14 Class Distribution -------------------- 100% | Mutant Dominant Class ---------------- Mutant | -10/Materials Mutant | -10/Mines Resources | -11 -10 -10 ----------- Run | Yrd Mat Min Matter Collected 405 | 193 46 166 Remotely . | . . . Salvage Created 297 | . 61 236 Parts 24 | . 7 17 Haulers Intercepted . | . . . Recyclers Shooed . | . . . Parts Field Recycled . | . . . Retrieved Matter . | . . . Parts Self-Destructed . | . . . Prevented . | . . . Parts Restored . | . . . Kills | -11 -10 -10 ------- Run | Yrd Mat Min Combat Hostiles Destroyed 10 | . 3 7 Guns 10 | . 3 7 Classes Destroyed 3 | . 2 1 Watcher 1 | . 1 . Swarmer 6 | . 3 3 Grunt 4 | . . 4 Best Kill Streak 4 | . 4 3 Combat Bots Only 3 | . 3 3 Max Kills in Single Turn 2 | . 2 1 Gunslinging 1 | . 1 . Exploded . | . . . Melee . | . . . Uniques/NPCs Destroyed . | . . . Combat | -11 -10 -10 -------- Run | Yrd Mat Min Hostile Shots Fired 83 | . 32 51 Missed 23 | . 9 14 Hits 60 | . 23 37 Projectile 60 | . 23 37 AOE 17 | . . 17 Damage Taken 914 | . 218 696 Core 275 | . 54 221 Absorbed by Shields . | . . . Core Remaining (%) 100 | 100 . . Volleys Fired 28 | . 8 20 Largest 2 | . 2 2 Hottest 85 | . 80 85 Shots Fired 55 | . 16 39 Gun 55 | . 16 39 Cannon . | . . . Launcher . | . . . Special . | . . . Kinetic 2 | . . 2 Thermal 31 | . 12 19 Explosive . | . . . Electromagnetic 22 | . 4 18 Robot Hit Streak 6 | . 3 6 Robot Miss Streak 3 | . 2 3 Penetration Max . | . . . Secondary Targets 4 | . 1 3 Max Gunslinging Chain 1 | . 1 1 Shots Hit Robots 29 | . 9 20 Core Hits 15 | . 4 11 Critical Kills . | . . . Critical Parts Destroyed . | . . . Critical Strikes 1 | . . 1 Corrupt 1 | . . 1 Melee Attacks . | . . . Impact . | . . . Slashing . | . . . Piercing . | . . . Sneak Attacks . | . . . Combat Hostiles . | . . . Follow-up Attacks . | . . . Damage Inflicted 460 | . 184 276 Guns 421 | . 145 276 Cannons . | . . . Explosions 39 | . 39 . Melee . | . . . Ramming . | . . . Kinetic . | . . . Thermal 221 | . 141 80 Explosive . | . . . Electromagnetic 239 | . 43 196 Impact . | . . . Slashing . | . . . Piercing . | . . . Highest Corruption . | . . . Average Corruption . | . . . Corruption Purged . | . . . Corruption Blocked . | . . . Overload Shots . | . . . Overflow Damage 9 | . 9 . Projectiles . | . . . Explosions 9 | . 9 . Melee . | . . . Knockbacks . | . . . Impact . | . . . Kinetic . | . . . Secondary . | . . . Self-Inflicted Damage 28 | . 28 . Shots 1 | . 1 . Rammed . | . . . Targets Rammed . | . . . Kicked . | . . . Crushed . | . . . Highest Temperature 258 | . 88 258 Average Temperature 82 | . 38 98 Received Heat Transfer 114 | . . 114 Siege Activations . | . . . Martial Activations . | . . . Shielding Activations . | . . . Robots Disrupted . | . . . Combat Hostiles . | . . . Robots Corrupted . | . . . Combat Hostiles . | . . . Parts Fried . | . . . Impact Corruptions . | . . . Robots Melted . | . . . Combat Hostiles . | . . . Parts Melted . | . . . Heat Transferred 450 | . 275 175 Parts Sabotaged . | . . . Parts Stolen . | . . . Parts Stripped . | . . . Power Chain Reactions 1 | . 1 . Alert | -11 -10 -10 ------- Run | Yrd Mat Min Maximum Alert Level . | . . . Low Security (%) 100 | 100 100 100 Level 1 . | . . . Level 2 . | . . . Level 3 . | . . . Level 4 . | . . . Level 5 . | . . . High Security . | . . . Max Security . | . . . Peak Influence 70 | . 67 70 Initial . | . . . Average 18 | . 16 24 Influence Increases 253 | . 83 170 Destroy 0b10 Robot/C 200 | . 60 140 Destroy 0b10 Robot/NC 5 | . 5 . Destroy Leader 42 | . 12 30 Successful Hack 4 | . 4 . Destroy Structure 2 | . 2 . Influence Decreases 253 | . 83 170 Time Decay 243 | . 83 160 Lost Part 10 | . . 10 Squads Dispatched 1 | . 1 . Investigation . | . . . Extermination . | . . . Reinforcement 1 | . 1 . Assault . | . . . Garrison . | . . . Intercept . | . . . Searches Triggered . | . . . Construction Impeded . | . . . Haulers Reinforced . | . . . Active Scanning Responses . | . . . Cargo Convoy Interrupts . | . . . Stealth | -11 -10 -10 --------- Run | Yrd Mat Min Distress Signals 1 | . 1 . Communications Jammed . | . . . Distress Signals . | . . . Times Spotted 14 | . 6 8 Peak Tracking Total 4 | . 4 3 Tactical Retreats . | . . . Traps | -11 -10 -10 ------- Run | Yrd Mat Min Traps Triggered . | . . . Indirectly . | . . . Trap Hack Attempts . | . . . Triggered . | . . . Disarmed . | . . . Reprogrammed . | . . . Reused . | . . . Traps Extracted . | . . . Installed . | . . . Triggered . | . . . Machines | -11 -10 -10 ---------- Run | Yrd Mat Min Machines Disabled . | . . . Max in Single Turn . | . . . Machines Repaired . | . . . Machines Dismantled . | . . . Machines Sabotaged . | . . . Overloaded Fab Kills . | . . . Hacking | -11 -10 -10 --------- Run | Yrd Mat Min Machines Accessed 1 | . 1 . Terminals 1 | . 1 . Fabricators . | . . . Repair Stations . | . . . Recycling Units . | . . . Scanalyzers . | . . . Garrison Access . | . . . Total Hacks 2 | . 2 . Successful 1 | . 1 . Failed 1 | . 1 . Catastrophic . | . . . Database Lockouts . | . . . Manual . | . . . Terminals 2 | . 2 . Fabricators . | . . . Repair Stations . | . . . Recycling Units . | . . . Scanalyzers . | . . . Garrison Access . | . . . Terminal Hacks 1 | . 1 . Locate Traps 1 | . 1 . Fabricator Hacks . | . . . Repair Station Hacks . | . . . Recycling Unit Hacks . | . . . Scanalyzer . | . . . Garrison Access Hacks . | . . . Unauthorized Hacks . | . . . Terminals . | . . . Fabricators . | . . . Repair Stations . | . . . Recycling Units . | . . . Scanalyzers . | . . . Garrison Access . | . . . Data Cores Recovered . | . . . Used . | . . . Hacking Detections . | . . . Full Trace Events . | . . . Feedback Events . | . . . Feedback Blocked . | . . . Robot Schematics Acquired . | . . . Robots Built . | . . . Authchips . | . . . Time . | . . . Total Robot Build Rating . | . . . Part Schematics Acquired . | . . . Parts Built . | . . . Authchips . | . . . Time . | . . . Total Part Build Rating . | . . . Part Studies Acquired . | . . . Parts Repaired . | . . . Time . | . . . Parts Recycled . | . . . Recycled Matter . | . . . Retrieved Matter . | . . . Retrieved Components . | . . . Parts Scanalyzed . | . . . Part Schematics Acquired . | . . . Parts Damaged . | . . . Bothacking | -11 -10 -10 ------------ Run | Yrd Mat Min Used RIF Installer . | . . . Robots Hacked . | . . . Non-combat . | . . . Combat . | . . . Robot Hacks Applied . | . . . Relay Couplers Released . | . . . Fabnet Peak Effective % . | . . . Robots Rewired . | . . . Allies Hacked . | . . . Hacks Repelled . | . . . Allies | -11 -10 -10 -------- Run | Yrd Mat Min Total Allies . | . . . Largest Group . | . . . Highest-Rated Group . | . . . Highest-Rated Ally . | . . . Total Orders . | . . . Ally Attacks . | . . . Total Damage . | . . . Kills . | . . . Allies Corrupted . | . . . Allies Melted . | . . . Intel | -11 -10 -10 ------- Run | Yrd Mat Min Active Infowar (turns) 657 | . 285 372 Structural 657 | . 285 372 Robot Analysis Total . | . . . Derelict Logs Recovered . | . . . Drone Launches . | . . . Drone Recoveries . | . . . Exploration | -11 -10 -10 ------------- Run | Yrd Mat Min Turns Passed 749 | 75 302 372 Spaces Moved 354 | 55 149 150 Core 4 | 4 . . Treads . | . . . Legs 350 | 51 149 150 Wheels . | . . . Hover . | . . . Flight . | . . . Fastest Speed 50 | 50 120 190 Average Speed 170 | 114 170 190 Slowest Speed 190 | 120 190 190 Overloaded Moves . | . . . Propulsion Burnouts . | . . . Robots Hopped . | . . . Potential Cave-ins . | . . . Cave-ins Triggered . | . . . Exploration Rate (%) 21 | 3 25 35 Regions Visited 2 Branch Regions 1 Pre-discovered Areas . | . . . Known Exits Taken . | . . . Unknown Exits Taken 2 | 1 1 . Scrap Searched . | . . . Spaces Dug . | . . . Terrain Destroyed 1 | . 1 . Melee . | . . . Projectile . | . . . AOE 1 | . 1 . Terrain Rammed . | . . . Walls Destroyed . | . . . Machines Disabled . | . . . Actions | -11 -10 -10 --------- Run | Yrd Mat Min Total 450 | 64 182 204 Wait 21 | . . 21 Move 352 | 54 148 150 Hop . | . . . Pick Up 14 | 4 10 . Fast Attach 10 | 6 4 . Attach 4 | . 3 1 Detach 5 | . 5 . Swap 8 | . 2 6 Drop 8 | . 2 6 Fire 28 | . 8 20 Melee . | . . . Ram . | . . . Kick . | . . . Crush . | . . . Escape Stasis . | . . . Rewire . | . . . Trap . | . . . Miscellaneous . | . . . Route ------- -11/Scrapyard -10/Materials -10/Mines History --------- Turn | Location | Event 12 | -11/Scrapyard | Discovered new exit (range 15) 76 | -11/Scrapyard | Entered Materials 280 | -10/Materials | Discovered new exit (range 13) 319 | -10/Materials | Build established: Mutant 378 | -10/Materials | Entered Mines 736 | -10/Mines | Core integrity fell below 50% 742 | -10/Mines | Core integrity fell below 20% 750 | -10/Mines | Destroyed by YI-UF0 with YI-UF0's Doublenader Last Messages --------------- 00679_ G-34 Mercenary destroyed. 00685_ Dropped Aluminum Leg. 00690_ Dropped Lgt. Ion Engine. 00697_ Acquired 20 matter. 00701_ Dropped Aluminum Leg. 00703_ Acquired 10 matter. 00727_ A derelict is hurriedly installing traps. 00729_ IX-QTU(g): "Hehe, this'll put a wrench in their mining defense operations..." 00729_ IX-QTU(g) slips into the shadows. 00730_ Hvy. EM Pulse Gun destroyed. 00731_ YI-UF0 mumbles something. 00732_ The unstable cave ceiling collapses. 00736_ K-01 Serf collects debris. 00737_ The unstable cave ceiling collapses. 00739_ Ion Engine destroyed. 00741_ The unstable cave ceiling collapses. 00742_ YI-UF0 mumbles something. 00743_ The unstable cave ceiling collapses. 00750_ YI-UF0 mumbles something. Map ----- +----------------------------------------------------+ | ?????????????????????????????????????????????????? | | ???????????????????? ? ???????????????????????? | | ??????????????????? ???????????????????????? | | ??????????????????# ??????????????????????? | | ??????????????????## ??????????????????????? | | ????????????#####?## ??????????????????????? | | ???????????######### # ##??????????????????????? | | ???????????### #### # ##?????? ?????????????? | | ??????????### ### # ###???? ?????????????? | | ??????????### # ###### ????????????? | | ?????????? ##### ????????????? | | ????????????## ### ????????????? | | ????????????## ???????????? | | ????????????## ????????????? | | ????????????### ###????????????? | | ?????????????### ###????????????? | | ??????????????### [= ##????????????? | | ???????????????## # = % ##????????????? | | ???????????????## ## !## ##????????????? | | ???????????????## ### ###### ########???????? | | ???????????????## ### ####### ##########???????? | | ???????????????## ### ###########*= ##???????? | | ???????????????## ### ##!=%=""" ##???????? | | ???????????????## #### ##=""" ##???????? | | ?????????######## ### # """ ##???????? | | ????????######### ### @ # ##???????? | | ???????#### ### ### ## ##???????? | | ??????#### ## ### ##########???????? | | ?????#### ### #########???????? | | ????#### ##### # ##?????????????? | | ???#### ############# ##?????????????? | | ???### ###########?## # ###?????????????? | | ???## ####????????## # ##?????????????? | | ???## #########??### ##?????????????? | | ???## ########### # ?????????????? | | ?##### """ ## ##### # ?????????????? | | ?###### """ #### # ????????????? | | ?## """ # ### g ????????????? | | ?## # %? ???????????? | | ?## ### ## k# =%= ??????????? | | ### ### ####### # # ? ????????????? | | ### ### ####### # # ????????????? | | ## ## ###???? # %= #######????????????? | | ##?????## = # #######????????????? | | ###### ???????? ## ######???????????????????? | | =* ######## ???????? ???????????????????? | | = #####??????????????????????????????????????????? | | *=###????????????????????????????????????????????? | | ###???????????????????????????????????????????? | | #######???????????????????????????????????????? | +----------------------------------------------------+ Best States ------------- Heat Dissipation 25 Energy Generation 10 Energy Capacity 250 Matter Stores 300 Matter Capacity 300 Sight Range 16 Terrain Scan Density 10 Evasion (%) 55 Item Schematics ----------------- None Robot Schematics ------------------ None Fabricated ------------ Nothing Repaired ---------- Nothing Studied --------- None Alien Tech Used ----------------- None Achievements -------------- None Challenges ------------ None Game ------ Seed ActuatorMolecularLeg Manual? 0 Play Time 00:10:55 Cumulative 14.5 hours Start 2026.04.13 @ 21:07:51 End 2026.04.13 @ 23:21:33 Sessions 3 Manual Loads 0 Difficulty Rogue Special Mode None Game No. 26 Rogue 26 Adventurer 0 Explorer 0 Win Type - Total 0 Types 0/0/0/0/0/0/0/0/0/0 Lore% 15 Gallery% 13 Achievement% 9 Wizard Run 0 Options --------- Layout 1 ASCII 0 Keyboard 1 Movement Arrows Keybinds 0 Fullscreen 2 Font 24/Smallcaps Map View 50x35 Zoom Use 0% Tactical HUD 1 Map Filters NONE Filters NONE Steam 1 RUN: 700f78c1-0c9f-4d92-b93a-5569bb41b80a